Cogmind - Beta 13 @@@ ROGUE MODE // 2024.06.25 @ 11:55:41 Player: Kai Result: Destroyed by G-73 Enforcer with Heavy Laser Performance ------------- Evolutions (6) 3000 Regions Visited (7) 1400 Robots Destroyed (108) 540 Value Destroyed (2795) 2795 Prototype IDs (9) 180 Alien Tech Used (0) 0 Bonus (17) 17 TOTAL SCORE: 7932 Bonus ------- High Alert Combat Kills 17 Cogmind --------- Core Integrity 0/1150 Matter 270/300 Energy 75/100 System Corruption 7% Temperature Cool (0) Movement Hovering (70) Location -4/Factory Parts ------- > --- POWER (2) -------- (None) > --- PROPULSION (5) --- Gyrokinetic Inverter Improved Cesium-ion Thruster > --- UTILITY (9) ------ Advanced Reaction Control System Hacking Suite System Shield > --- WEAPON (3) ------- (None) > --- INVENTORY (5) ---- (None) Peak State ------------ > --- POWER ------------ Light Fission Core Light Fission Core > --- PROPULSION ------- Improved Cesium-ion Thruster Improved Cesium-ion Thruster Cooled VTOL Module Field Propulsion Array > --- UTILITY ---------- Improved Cooling System Structural Scanner Advanced Sensor Array Improved Signal Interpreter Transmission Jammer Improved Reaction Control System Hacking Suite Hacking Suite System Shield > --- WEAPON ----------- Rocket Launcher Rocket Launcher Heavy Hammer > --- INVENTORY -------- Xenon Bombardment Thruster Improved Cesium-ion Thruster Improved Cesium-ion Thruster Advanced ECM Suite Authchip [Propulsion] [Rating: 78] Favorites ----------- Power Cooled Ion Engine Engine Cooled Ion Engine Power Core Light Fission Core Propulsion Light Treads Treads Light Treads Hover Unit Gyrokinetic Inverter Flight Unit Improved Cesium-ion Thruster Utility Hacking Suite Device Structural Scanner Storage High-capacity Storage Unit Processor Improved Signal Interpreter Hackware Hacking Suite Protection Hardened Light Armor Plating Weapon Improved Assault Rifle Ballistic Gun Improved Assault Rifle Launcher Rocket Launcher Impact Weapon Heavy Hammer Build | -11 -10 -9 -8 -7 -6 -5 -4 ------- Run | Yrd Mat Mat Mat Fac Fac Fac Fac Slots Evolved 12 | . . 2 2 2 2 2 2 Power 1 | . . . . . . 1 . Propulsion 3 | . . . 1 1 . 1 . Utility 7 | . . 1 1 1 2 . 2 Weapon 1 | . . 1 . . . . . Parts Attached 104 | 7 3 15 28 24 11 3 13 Power 11 | 2 . 2 1 2 3 1 . Engine 6 | 2 . 1 1 2 . . . Core 5 | . . 1 . . 3 1 . Reactor . | . . . . . . . . Propulsion 34 | 2 . 3 6 14 1 2 6 Treads 11 | 2 . 3 6 . . . . Leg . | . . . . . . . . Wheel . | . . . . . . . . Hover 1 | . . . . . . . 1 Flight 22 | . . . . 14 1 2 5 Utility 25 | 1 3 1 5 5 5 . 5 Device 12 | . . . . 3 4 . 5 Storage 3 | 1 2 . . . . . . Processor 2 | . 1 . 1 . . . . Hackware 5 | . . . 2 2 1 . . Protection 3 | . . 1 2 . . . . Artifact . | . . . . . . . . Weapon 34 | 2 . 9 16 3 2 . 2 Energy Gun . | . . . . . . . . Energy Cannon . | . . . . . . . . Ballistic Gun 22 | 2 . 8 11 . 1 . . Ballistic Cannon . | . . . . . . . . Launcher 10 | . . 1 4 2 1 . 2 Special Weapon . | . . . . . . . . Impact Weapon 2 | . . . 1 1 . . . Slashing Weapon . | . . . . . . . . Piercing Weapon . | . . . . . . . . Special Melee Weapon . | . . . . . . . . Unidentified Prototypes 1 | . . . . 1 . . . Parts Lost 27 | . . 1 7 1 . . 18 Power 4 | . . 1 1 . . . 2 Propulsion 9 | . . . 3 . . . 6 Utility 10 | . . . 2 1 . . 7 Weapon 4 | . . . 1 . . . 3 Highest Loss Streak 17 | . . 1 2 1 . . 17 To Critical Strikes . | . . . . . . . . Average Slot Usage (%) 97 | . 98 100 98 94 99 100 81 Engine 7 | . 14 7 8 7 . . . Core 2 | . . 3 . . 5 11 8 Treads 18 | . 28 22 26 . . . . Flight 7 | . . . . 29 26 29 19 Device 5 | . . . . 15 19 17 21 Storage 7 | . 14 11 9 . . . . Processor 9 | . 12 11 9 7 6 5 4 Hackware 6 | . . . 8 14 20 17 14 Protection 5 | . . 11 9 . . . . Ballistic Gun 20 | . 28 32 26 . . . . Launcher 2 | . . . . 9 13 11 5 Impact Weapon 1 | . . . . 6 6 5 4 Naked Turns . | . . . . . . . . Heaviest Build 65 | 14 49 63 65 18 24 29 33 Greatest Support 60 | 40 40 40 60 24 24 30 35 Greatest Overweight (x) 2 | 2 1 1 2 . . . 1 Average Overweight (x) . | . . 1 . . . . . Largest Inventory Capacity 20 | 8 20 20 20 20 5 5 5 Average Capacity 15 | 6 19 20 20 5 5 5 5 Most Carried 20 | 4 20 20 20 17 5 5 5 Average Carried 14 | 2 16 19 19 5 4 3 3 Final Capacity 20 | 8 20 20 20 5 5 5 5 Final Carried 20 | 4 20 20 18 5 5 5 . Class Distribution -------------------- 26% | Scavenger-Tank 22% | Tank 22% | Mutant 18% | Hacker-Scout 5% | Hacker-Ninja Dominant Class ---------------- Mutant | -10/Materials Scavenger-Tank | -9/Materials Tank | -8/Materials Hacker-Scout | -7/Factory Hacker-Scout | -6/Factory Hacker-Scout | -5/Factory Hacker-Ninja | -4/Factory Resources | -11 -10 -9 -8 -7 -6 -5 -4 ----------- Run | Yrd Mat Mat Mat Fac Fac Fac Fac Matter Collected 2692 | 231 452 572 936 291 90 60 60 Remotely . | . . . . . . . . Salvage Created 3653 | . 452 959 1195 380 260 120 287 Parts 190 | . 34 58 77 6 2 . 13 Haulers Intercepted 7 | . . 1 1 2 1 1 1 Recyclers Shooed 1 | . . . 1 . . . . Parts Field Recycled . | . . . . . . . . Retrieved Matter . | . . . . . . . . Parts Self-Destructed . | . . . . . . . . Prevented . | . . . . . . . . Kills | -11 -10 -9 -8 -7 -6 -5 -4 ------- Run | Yrd Mat Mat Mat Fac Fac Fac Fac Combat Hostiles Destroyed 66 | . 12 19 28 2 . . 5 Melee 5 | . . . 1 . . . 4 Guns 43 | . 12 16 15 . . . . AOE 16 | . . 3 11 2 . . . Classes Destroyed 13 | . 4 3 4 1 . . 1 Worker 7 | . . . 2 3 1 . 1 Builder 7 | . 1 2 2 1 . 1 . Tunneler 2 | . . . . 1 . . 1 Hauler 7 | . . 1 1 2 1 1 1 Recycler 6 | . . 1 3 1 1 . . Operator 4 | . . . 2 2 . . . Watcher 9 | . 1 3 . 3 1 . 1 Swarmer 18 | . 3 3 8 . . . 4 Grunt 35 | . 9 12 12 2 . . . Brawler 1 | . . . 1 . . . . Duelist 1 | . . . 1 . . . . Sentry 10 | . . 4 6 . . . . Programmer 1 | . . . . . . . 1 Best Kill Streak 8 | . 3 4 8 3 2 1 3 Combat Bots Only 5 | . 3 4 5 2 . . 1 Max Kills in Single Turn 4 | . 1 3 4 1 1 1 1 Gunslinging . | . . . . . . . . Exploded 3 | . . 3 3 1 . . . Melee 1 | . . . 1 . . . 1 Uniques/NPCs Destroyed . | . . . . . . . . Combat | -11 -10 -9 -8 -7 -6 -5 -4 -------- Run | Yrd Mat Mat Mat Fac Fac Fac Fac Hostile Shots Fired 440 | . 39 70 108 13 . . 210 Missed 145 | . 9 15 25 7 . . 89 Damage Taken 4831 | . 351 699 1270 117 . . 2394 Core 1409 | . 41 54 110 40 . . 1164 Absorbed by Shields 19 | . . . . 19 . . . Regen/Repaired (Parts) 71 | . 16 . 43 12 . . . Core Remaining (%) 91 | 100 83 86 80 94 100 100 . Volleys Fired 168 | . 52 44 66 6 . . . Largest 3 | . 2 3 3 1 . . . Hottest 81 | . 40 79 81 33 . . . Shots Fired 430 | . 104 132 188 6 . . . Gun 411 | . 104 131 176 . . . . Cannon . | . . . . . . . . Launcher 19 | . . 1 12 6 . . . Special . | . . . . . . . . Kinetic 411 | . 104 131 176 . . . . Thermal . | . . . . . . . . Explosive 19 | . . 1 12 6 . . . Electromagnetic . | . . . . . . . . Robot Hit Streak 26 | . 10 26 25 4 . . . Robot Miss Streak 5 | . 4 2 5 2 . . . Penetration Max . | . . . . . . . . Secondary Targets . | . . . . . . . . Shots Hit Robots 326 | . 64 93 124 19 5 3 18 Core Hits 146 | . 26 42 64 10 1 . 3 Critical Kills 2 | . . . . 1 1 . . Critical Parts Destroyed 12 | . . 2 1 3 1 2 3 Critical Strikes 14 | . . 2 1 4 2 2 3 Destroy 2 | . . 2 . . . . . Smash 12 | . . . 1 4 2 2 3 Melee Attacks 113 | . . . 3 31 13 22 44 Impact 113 | . . . 3 31 13 22 44 Slashing . | . . . . . . . . Piercing . | . . . . . . . . Sneak Attacks 18 | . . . . 8 4 2 4 Combat Hostiles 1 | . . . . . . . 1 Follow-up Attacks . | . . . . . . . . Damage Inflicted 8901 | . 813 1473 3106 1511 551 308 1139 Guns 3920 | . 809 1305 1806 . . . . Cannons . | . . . . . . . . Explosions 1705 | . . 140 1179 386 . . . Melee 3240 | . . . 117 1125 551 308 1139 Ramming 36 | . 4 28 4 . . . . Kinetic 3920 | . 809 1305 1806 . . . . Thermal . | . . . . . . . . Explosive 1705 | . . 140 1179 386 . . . Electromagnetic . | . . . . . . . . Impact 3240 | . . . 117 1125 551 308 1139 Slashing . | . . . . . . . . Piercing . | . . . . . . . . Highest Corruption 7 | . . . . . . . 7 Average Corruption 6 | . . . . . . . 6 Corruption Purged . | . . . . . . . . Corruption Blocked . | . . . . . . . . Effects 4 | . . . . . . . 4 Message Errors 2 | . . . . . . . 2 Heat Flow Errors 1 | . . . . . . . 1 Parts Rejected 1 | . . . . . . . 1 Overload Shots . | . . . . . . . . Overflow Damage 1926 | . . 37 85 578 311 278 637 Projectiles . | . . . . . . . . Explosions 106 | . . 37 42 27 . . . Melee 1820 | . . . 43 551 311 278 637 Knockbacks 9 | . . . . 5 2 1 1 Impact 9 | . . . . 5 2 1 1 Kinetic . | . . . . . . . . Secondary . | . . . . . . . . Self-Inflicted Damage 65 | . . . 65 . . . . Shots 2 | . . . 2 . . . . Rammed 5 | . 1 4 . . . . . Targets Rammed 7 | . 1 5 1 . . . . Kicked . | . . . . . . . . Crushed 2 | . . 1 1 . . . . Highest Temperature 231 | . 20 172 98 13 . 140 231 Average Temperature 36 | . 6 36 20 5 . 44 100 Received Heat Transfer 1291 | . 204 312 441 43 . . 291 Siege Activations . | . . . . . . . . Robots Corrupted . | . . . . . . . . Combat Hostiles . | . . . . . . . . Parts Fried 19 | . . . . 9 4 4 2 Impact Corruptions 48 | . . . 1 21 7 4 15 Robots Melted . | . . . . . . . . Combat Hostiles . | . . . . . . . . Parts Melted . | . . . . . . . . Heat Transferred . | . . . . . . . . Parts Sabotaged . | . . . . . . . . Parts Stolen . | . . . . . . . . Parts Stripped . | . . . . . . . . Power Chain Reactions . | . . . . . . . . Alert | -11 -10 -9 -8 -7 -6 -5 -4 ------- Run | Yrd Mat Mat Mat Fac Fac Fac Fac Peak Influence 715 | . 130 182 343 392 275 95 715 Initial 177 | . . 13 27 122 177 65 43 Average 140 | . 47 47 194 274 196 75 339 Maximum Alert Level 3 | . . . 1 1 1 . 3 Low Security (%) 71 | 100 100 100 50 25 46 100 24 Level 1 25 | . . . 49 74 53 . 38 Level 2 2 | . . . . . . . 35 Level 3 . | . . . . . . . 1 Level 4 . | . . . . . . . . Level 5 . | . . . . . . . . High Security . | . . . . . . . . Max Security . | . . . . . . . . Squads Dispatched 22 | . 2 2 7 6 . 1 4 Investigation 8 | . 1 2 1 1 . 1 2 Extermination 2 | . . . . 1 . . 1 Reinforcement 9 | . 1 . 3 4 . . 1 Assault . | . . . . . . . . Garrison 3 | . . . 3 . . . . Intercept . | . . . . . . . . Searches Triggered 1 | . . . . . . . 1 Construction Impeded . | . . . . . . . . Haulers Reinforced . | . . . . . . . . Active Scanning Responses . | . . . . . . . . Cargo Convoy Interrupts . | . . . . . . . . Stealth | -11 -10 -9 -8 -7 -6 -5 -4 --------- Run | Yrd Mat Mat Mat Fac Fac Fac Fac Distress Signals 11 | . 2 . 4 4 1 . . Communications Jammed 17 | . . . . . . . 17 Distress Signals 17 | . . . . . . . 17 Times Spotted 169 | . 29 24 39 15 2 2 58 Peak Tracking Total 17 | . 4 4 6 3 3 3 17 Tactical Retreats 25 | . . 3 3 4 1 1 13 Traps | -11 -10 -9 -8 -7 -6 -5 -4 ------- Run | Yrd Mat Mat Mat Fac Fac Fac Fac Traps Triggered 4 | . 1 . . 2 . 1 . Indirectly . | . . . . . . . . Trap Hack Attempts . | . . . . . . . . Triggered . | . . . . . . . . Disarmed . | . . . . . . . . Reprogrammed . | . . . . . . . . Reused . | . . . . . . . . Traps Extracted . | . . . . . . . . Installed . | . . . . . . . . Triggered . | . . . . . . . . Machines | -11 -10 -9 -8 -7 -6 -5 -4 ---------- Run | Yrd Mat Mat Mat Fac Fac Fac Fac Machines Disabled 7 | . 1 . 4 2 . . . Max in Single Turn 1 | . 1 . 1 1 . . . Garrison Access 1 | . . . . 1 . . . Machines Repaired . | . . . . . . . . Machines Dismantled . | . . . . . . . . Machines Sabotaged . | . . . . . . . . Overloaded Fab Kills . | . . . . . . . . Hacking | -11 -10 -9 -8 -7 -6 -5 -4 --------- Run | Yrd Mat Mat Mat Fac Fac Fac Fac Machines Accessed 38 | . 7 5 8 10 2 3 3 Terminals 24 | . 5 4 5 4 2 2 2 Fabricators 3 | . . . . 1 . 1 1 Repair Stations 3 | . 1 . 1 1 . . . Recycling Units 7 | . 1 1 2 3 . . . Scanalyzers . | . . . . . . . . Garrison Access 1 | . . . . 1 . . . Total Hacks 96 | . 18 12 33 16 4 6 7 Successful 51 | . 9 4 21 8 3 3 3 Failed 45 | . 9 8 12 8 1 3 4 Catastrophic 9 | . 1 2 2 3 . . 1 Database Lockouts . | . . . . . . . . Manual 27 | . 6 2 14 2 1 1 1 Terminals 66 | . 11 7 28 8 4 3 5 Fabricators 7 | . . . . 2 . 3 2 Repair Stations 6 | . 2 . 2 2 . . . Recycling Units 16 | . 5 5 3 3 . . . Scanalyzers . | . . . . . . . . Garrison Access 1 | . . . . 1 . . . Terminal Hacks 33 | . 5 3 17 3 3 1 1 Record 8 | . . . 8 . . . . Part Schematic 1 | . . . . . 1 . . Prototype ID Bank 3 | . 1 . 1 1 . . . Branch Access Points 1 | . . . 1 . . . . Emergency Access Points 1 | . . . 1 . . . . Alert Level 5 | . 1 . 3 . 1 . . Unreport Threat 4 | . 1 1 1 . 1 . . Locate Traps 1 | . . . . . . 1 . Maintenance Status 1 | . 1 . . . . . . Recall Investigation 1 | . . . . . . . 1 Recall Extermination 1 | . . . . 1 . . . Hauler Manifests 4 | . 1 1 2 . . . . Registered Components 1 | . . . . 1 . . . Zone Layout 1 | . . 1 . . . . . Fabricator Hacks 4 | . . . . . . 2 2 Load Schematic 2 | . . . . . . 1 1 Build 2 | . . . . . . 1 1 Repair Station Hacks 6 | . 2 . 2 2 . . . Scan Component 3 | . 1 . 1 1 . . . Repair 3 | . 1 . 1 1 . . . Recycling Unit Hacks 7 | . 2 1 2 2 . . . Report Inventory 6 | . 1 1 2 2 . . . Retrieve Components 1 | . 1 . . . . . . Scanalyzer . | . . . . . . . . Garrison Access Hacks 1 | . . . . 1 . . . Seal Access 1 | . . . . 1 . . . Unauthorized Hacks . | . . . . . . . . Terminals . | . . . . . . . . Fabricators . | . . . . . . . . Repair Stations . | . . . . . . . . Recycling Units . | . . . . . . . . Scanalyzers . | . . . . . . . . Garrison Access . | . . . . . . . . Data Cores Recovered . | . . . . . . . . Used . | . . . . . . . . Hacking Detections 31 | . 6 5 6 7 1 3 3 Full Trace Events 7 | . . 2 1 1 . 1 2 Feedback Events 1 | . . . 1 . . . . Hackware Fried 1 | . . . 1 . . . . Feedback Blocked . | . . . . . . . . Robot Schematics Acquired . | . . . . . . . . Robots Built . | . . . . . . . . Authchips . | . . . . . . . . Time . | . . . . . . . . Total Robot Build Rating . | . . . . . . . . Part Schematics Acquired 1 | . . . . . 1 . . Parts Built 2 | . . . . . . 1 1 Authchips . | . . . . . . . . Time 201 | . . . . . . 134 67 Total Part Build Rating 8 | . . . . . . 4 4 Parts Repaired 3 | . 1 . 1 1 . . . Time 114 | . 38 . 32 44 . . . Parts Recycled . | . . . . . . . . Recycled Matter . | . . . . . . . . Retrieved Matter . | . . . . . . . . Retrieved Components 5 | . 5 . . . . . . Parts Scanalyzed . | . . . . . . . . Part Schematics Acquired . | . . . . . . . . Parts Damaged . | . . . . . . . . Bothacking | -11 -10 -9 -8 -7 -6 -5 -4 ------------ Run | Yrd Mat Mat Mat Fac Fac Fac Fac Used RIF Installer . | . . . . . . . . Robots Hacked . | . . . . . . . . Non-combat . | . . . . . . . . Combat . | . . . . . . . . Robot Hacks Applied . | . . . . . . . . Relay Couplers Released . | . . . . . . . . Fabnet Peak Effective % . | . . . . . . . . Robots Rewired . | . . . . . . . . Allies Hacked . | . . . . . . . . Hacks Repelled . | . . . . . . . . Allies | -11 -10 -9 -8 -7 -6 -5 -4 -------- Run | Yrd Mat Mat Mat Fac Fac Fac Fac Total Allies . | . . . . . . . . Largest Group . | . . . . . . . . Highest-Rated Group . | . . . . . . . . Highest-Rated Ally . | . . . . . . . . Total Orders . | . . . . . . . . Ally Attacks . | . . . . . . . . Total Damage . | . . . . . . . . Kills . | . . . . . . . . Allies Corrupted . | . . . . . . . . Allies Melted . | . . . . . . . . Intel | -11 -10 -9 -8 -7 -6 -5 -4 ------- Run | Yrd Mat Mat Mat Fac Fac Fac Fac Robot Analysis Total . | . . . . . . . . Derelict Logs Recovered . | . . . . . . . . Drone Launches . | . . . . . . . . Drone Recoveries . | . . . . . . . . Exploration | -11 -10 -9 -8 -7 -6 -5 -4 ------------- Run | Yrd Mat Mat Mat Fac Fac Fac Fac Turns Passed 7464 | 88 1508 1682 2060 760 215 541 610 Spaces Moved 6413 | 53 578 593 727 1804 580 859 1219 Core 20 | 14 . . . . . . 6 Treads 1937 | 39 578 593 727 . . . . Legs . | . . . . . . . . Wheels . | . . . . . . . . Hover 48 | . . . . . . . 48 Flight 4408 | . . . . 1804 580 859 1165 Fastest Speed 20 | 50 160 240 160 26 26 23 20 Average Speed 89 | 142 222 240 233 28 26 23 30 Slowest Speed 320 | 160 240 240 320 30 30 24 100 Overloaded Moves 119 | . . . . . . . 119 Propulsion Burnouts . | . . . . . . . . Robots Hopped 10 | . . . . 6 . . 4 Cave-ins Triggered . | . . . . . . . . Exploration Rate (%) 39 | 3 88 53 43 50 23 23 32 Regions Visited 7 Branch Regions . Pre-discovered Areas . | . . . . . . . . Known Exits Taken 6 | . 1 1 1 1 1 1 . Unknown Exits Taken 1 | 1 . . . . . . . Scrap Searched . | . . . . . . . . Spaces Dug 52 | . . . . 12 8 17 15 Terrain Destroyed 128 | . . 7 60 21 8 17 15 Melee 52 | . . . . 12 8 17 15 Projectile . | . . . . . . . . AOE 76 | . . 7 60 9 . . . Terrain Rammed . | . . . . . . . . Walls Destroyed . | . . . . . . . . Machines Disabled . | . . . . . . . . Actions | -11 -10 -9 -8 -7 -6 -5 -4 --------- Run | Yrd Mat Mat Mat Fac Fac Fac Fac Total 7588 | 63 694 753 940 1982 621 1160 1375 Wait 622 | . 38 68 84 86 3 254 89 Move 6388 | 52 577 592 726 1792 579 858 1212 Hop 8 | . . . . 5 . . 3 Pick Up 67 | 4 19 12 15 3 5 3 6 Fast Attach 15 | 5 1 . 3 2 2 . 2 Attach 37 | 1 1 3 7 10 3 2 10 Detach 4 | . 1 . . . 1 . 2 Swap 52 | 1 1 12 18 12 6 1 1 Drop 74 | . 3 17 17 20 9 2 6 Fire 168 | . 52 44 66 6 . . . Melee 113 | . . . 3 31 13 22 44 Ram . | . . . . . . . . Kick . | . . . . . . . . Crush 7 | . 1 5 1 . . . . Escape Stasis 33 | . . . . 15 . 18 . Rewire . | . . . . . . . . Trap . | . . . . . . . . Miscellaneous . | . . . . . . . . Route ------- -11/Scrapyard -10/Materials (discovered 4 exits: *Mat x3 / [*Min]) -9/Materials (discovered 3 exits: *Mat x2 / [*Min]) -8/Materials -7/Factory (discovered 2 exits: *Fac / *Low) -6/Factory (discovered 2 exits: *Fac / *Low) -5/Factory -4/Factory History --------- Turn | Location | Event 17 | -11/Scrapyard | Discovered new exit (range 15) 89 | -11/Scrapyard | Entered Materials 313 | -10/Materials | Build established: Mutant 440 | -10/Materials | Repaired Lgt. Nuclear Core 520 | -10/Materials | Discovered new exit (range 5) 530 | -10/Materials | Identified exit to Materials 816 | -10/Materials | Discovered exit to Materials (range 7) 957 | -10/Materials | Discovered exit to Materials (range 5) 1139 | -10/Materials | Discovered new exit (range 12) 1597 | -10/Materials | Entered another Materials area 1597 | -9/Materials | Evolved 2 slots: Utility x1, Weapon x1 1897 | -9/Materials | Build established: Tank 2240 | -9/Materials | Build established: Scavenger-Tank 2723 | -9/Materials | Discovered new exit (range 4) 2731 | -9/Materials | Identified exit to Materials 2840 | -9/Materials | Discovered new exit (range 14) 3002 | -9/Materials | Discovered exit to Materials (range 10) 3279 | -9/Materials | Entered another Materials area 3279 | -8/Materials | Evolved 2 slots: Propulsion x1, Utility x1 3407 | -8/Materials | Hacking Suite fried by hacking feedback 4026 | -8/Materials | Build established: Tank 4546 | -8/Materials | Discovered new exit (range 5) 4610 | -8/Materials | Identified exit to Factory 4746 | -8/Materials | Repaired Rocket Launcher 4978 | -8/Materials | Garrison activated, responded to threat 5339 | -8/Materials | Entered Factory 5339 | -7/Factory | Evolved 2 slots: Propulsion x1, Utility x1 5813 | -7/Factory | Discovered new exit (range 15) 5817 | -7/Factory | Identified exit to Lower Caves 5852 | -7/Factory | Build established: Hacker-Scout 6000 | -7/Factory | Repaired Xenon Bombardment Thruster 6097 | -7/Factory | Discovered new exit (range 7) 6098 | -7/Factory | Identified exit to Factory 6099 | -7/Factory | Entered another Factory area 6099 | -6/Factory | Evolved 2 slots: Utility x2 6161 | -6/Factory | Discovered new exit (range 8) 6162 | -6/Factory | Identified exit to Lower Caves 6311 | -6/Factory | Discovered new exit (range 11) 6314 | -6/Factory | Identified exit to Factory 6314 | -6/Factory | Entered another Factory area 6314 | -5/Factory | Evolved 2 slots: Power x1, Propulsion x1 6457 | -5/Factory | Fabricated Cld. VTOL Module? 6853 | -5/Factory | Discovered new exit (range 9) 6855 | -5/Factory | Identified exit to Factory 6855 | -5/Factory | Entered another Factory area 6855 | -4/Factory | Evolved 2 slots: Utility x2 7007 | -4/Factory | Fabricated Cld. VTOL Module (x1) 7158 | -4/Factory | Build established: Hacker-Ninja 7355 | -4/Factory | Search patrols dispatched 7412 | -4/Factory | Core integrity fell below 50% 7446 | -4/Factory | Lost 17 parts (2p6n6u3w) 7451 | -4/Factory | Core integrity fell below 20% 7465 | -4/Factory | Destroyed by G-73 Enforcer with Heavy Laser Last Messages --------------- 07403_ Backup Plating III tumbles out of repair station. 07403_ Backup Laser III tumbles out of repair station. 07403_ Backup Power III tumbles out of repair station. 07408_ Penetrated by Slug. 07408_ U-05 Engineer destroyed. 07411_ R-10 Processor collects Terrain Scan Processor. 07411_ Penetrated by Slug. 07414_ Imp. Cesium-ion Thruster destroyed. 07415_ Penetrated by Slug. 07415_ Hacking Suite destroyed. 07415_ Penetrated by Slug. 07417_ Critical hit (Burn: +37). 07419_ System corrupted: Adv. ECM Suite rejected. 07428_ Acquired Gyrokinetic Inverter. 07434_ L|CO1H,ELWV82|O2PDQW5SAFMC:5 07434_ ALERT: Cargo convoy en route, clear transfer corridor. 07442_ ALERT: Security rotation in progress. 07448_ Penetrated by Slug. 07456_ BF WEOFR,NKCPCNJOYYYOOG SJX#QERTFI38 07460_ Acquired Adv. Reaction Control System. Map ----- +----------------------------------------------------+ | ##??????????????????????????????????????? | | #### ##??????????????????????????????????????? | | #### ##??????????????????????????????????????? | | ???###"###???????????????????????????????????????? | | ?????###?????????????????????????????????????????? | | ?????????????????????????????????????????????????? | | ?????????????????????????????????????????????????? | | ????????????????????????????????????????????????? | | ????????????????????????????????????????????????? | | ""???????????????????????????????????????????????? | | ???????????????????????????????????????????????? | | """ ????????? ???? ???????????????????????????? | | ????????# ??? ??????????????????????????? | | ????????????# ??? ???????????????????????? | | ????????# ??? #???????????????????????? | | """ ???????# ??" #???????????????????????? | | ??????????# "?" ! #???????????????????????? | | ""??????????+ """ ????????????????????????? | | ???????????# #????????????????????????? | | #???????????# """ #????????????????????????? | | ????????????# """ #????????????????????????? | | #????####???# """ #????????????????????????? | | #?# ######### ?????????????????????????? | | ???????????????????????????? | | ###### ###+####?????????????????????? | | # # @ #?????????????????????? | | # g/ """ #?????????????????????? | | # ########+#####g """ #?????????????????????? | | # ### # s"""s#?????????????????????? | | # ####!! # s #?????????????????????? | | # ##?#!! #! s #?????????????????????? | | # ##?#!! "" ###+####?????????????????????? | | # ##?# """#?# #????????????????????????? | | # ##?# R"#?# #????????????????????????? | | # ##?# """#?# #????????????????????????? | | # ##?# #?# #????????????????????????? | | # ##?##/########?# #????????????????????????? | | ###### ##??# #???????? ????????????????????????? | | ###### ##??# #???????? ???????????????????????? | | ????## ##??# #???????? ?????????????????????? | | ??#### ##### #####???? ## ?????????????????????? | | ??####/#####/#####?### T##?????????????????????? | | ??## ###### ##?????????????????????? | | #### """"" #### ##??????????????????????? | | # ""T"" #### ##??????????????????????? | | # #### ##???????????????????????? | | # #### ##???????????????????????? | | # #### ?????????????????????????? | | + """" !!! #### ##????####### ?????????????? | | # """" !!! #### ##????####### ?????????????? | +----------------------------------------------------+ Best States ------------- Heat Dissipation 70 Energy Generation 31 Energy Capacity 310 Matter Stores 300 Matter Capacity 300 Sight Range 16 Robot Scan Range 16 Terrain Scan Density 10 Jamming Range 12 Armor Coverage 225 Evasion (%) 75 Recoil Reduction 3 Offensive Hacking 20 Defensive Hacking 10 Authchip Count 1 Item Schematics ----------------- Cld. VTOL Module | -6/Factory | Hacked Robot Schematics ------------------ None Fabricated ------------ Cld. VTOL Module | x1 | -5/Factory Cld. VTOL Module | x1 | -4/Factory Alien Tech Used ----------------- None Achievements -------------- Dodgeball, But With Guns GoHome() Challenges ------------ None Game ------ Seed TimingCoolantKinecellerator Manual? 0 Play Time 01:31:17 Cumulative 22.8 hours Start 2024.06.25 @ 10:23:24 End 2024.06.25 @ 11:55:41 Sessions 1 Manual Loads 0 Difficulty Rogue Special Mode None Game No. 23 Rogue 23 Adventurer 0 Explorer 0 Win Type - Total 0 Types 0/0/0/0/0/0/0/0/0 Lore% 17 Gallery% 26 Achievement% 23 Wizard Run 0 Options --------- Layout 0 ASCII 0 Keyboard 0 Movement Mouse Keybinds 0 Fullscreen 2 Font 24/Smallcaps Map View 38x28 Zoom Use 97% Tactical HUD 1 Map Filters NONE Filters NONE Steam 1 RUN: b6471099-428c-4234-b10b-2dbaaefa5a4d